bitfinex/quotes_SOLUSD_20250130
["timestamp","ask_amount","ask_price","bid_price","bid_amount"]
[1738222555098,0.12549,238.05,237.98,12.71374619]
[1738222555400,0.25098,238.05,237.98,12.71374619]
[1738222556070,4.2009,238.04,237.98,12.71374619]
[1738222557097,0.25098,238.03,237.98,12.71374619]
[1738222557299,0.12549,237.99,237.97,0.063]
[1738222557491,0.25098,237.99,237.97,0.063]
[1738222559306,28.229864,237.98,237.97,0.063]
[1738222559493,23.776884,237.98,237.97,0.063]
[1738222560700,23.902374,237.98,237.97,0.063]
[1738222563010,23.776884,237.98,237.97,0.063]
[1738222564887,0.25098,237.93,237.86,12.71374619]
[1738222565087,12.96472619,237.91,237.84,12.71374619]
[1738222565298,0.12549,237.89,237.84,12.71374619]
[1738222565809,23.902374,237.86,237.8,12.71374619]
[1738222565991,23.776884,237.82,237.78,12.71374619]
[1738222566394,27.981784,237.82,237.78,12.71374619]
[1738222567527,0.12549,237.81,237.78,12.71374619]
[1738222567815,20.0,237.77,237.74,0.03]
[1738222567989,25.287584,237.76,237.74,0.03]
[1738222568195,0.12549,237.75,237.74,0.03]
[1738222568789,0.25098,237.75,237.74,0.03]
[1738222569209,36.74161019,237.75,237.74,0.03]
[1738222570308,42.92371019,237.75,237.74,0.03]
[1738222571506,30.209964,237.75,237.74,0.03]
[1738222571815,31.209964,237.75,237.74,0.03]
[1738222572114,43.92371019,237.75,237.74,0.03]
[1738222572311,42.92371019,237.75,237.74,0.03]
[1738222572617,30.209964,237.75,237.74,0.03]
[1738222573489,83.0,237.8,237.74,12.74374619]
[1738222573687,84.0,237.8,237.74,12.74374619]
[1738222574117,24.027864,237.79,237.74,12.74374619]
[1738222574618,24.027864,237.79,237.74,0.03]
[1738222575623,28.233264,237.79,237.74,0.03]
[1738222575792,20.25098,237.75,237.74,0.03]
[1738222576207,21.25098,237.75,237.74,0.03]
[1738222576494,20.25098,237.75,237.74,0.03]
[1738222576915,16.91914619,237.79,237.74,0.03]
[1738222577121,17.91914619,237.79,237.74,0.03]
[1738222577324,16.91914619,237.79,237.74,0.03]
[1738222577526,20.12549,237.75,237.74,0.03]
[1738222577716,43.902374,237.75,237.74,0.03]
[1738222578216,45.586114,237.75,237.74,0.03]
[1738222579405,45.711604,237.75,237.74,0.03]
[1738222580725,46.711604,237.75,237.74,0.03]
[1738222580922,59.42535019,237.75,237.74,0.03]
[1738222581122,46.711604,237.75,237.74,0.03]
[1738222581428,45.711604,237.75,237.74,0.03]
[1738222581923,25.711604,237.75,237.74,0.03]
[1738222582824,83.0,237.8,237.74,0.03]
[1738222582825,4.2056,237.78,237.74,0.03]
[1738222583216,0.25098,237.75,237.74,0.03]
[1738222583939,12.96472619,237.75,237.74,0.03]
[1738222584934,119.74161019,237.75,237.74,0.03]
[1738222585230,123.94761019,237.75,237.74,0.03]
[1738222585633,111.233864,237.75,237.74,0.03]
[1738222585823,83.0,237.75,237.74,0.03]
[1738222586021,83.0,237.75,237.74,12.74374619]
[1738222586217,4.2054,237.79,237.74,12.74374619]
[1738222586529,4.2051,237.81,237.76,12.71374619]
[1738222586924,24.027864,237.8,237.76,12.71374619]
[1738222587522,12.743746,237.81,237.76,12.71374619]
[1738222587730,88.7595,237.82,237.76,12.71374619]
[1738222587937,0.12549,237.81,237.76,12.71374619]
[1738222588124,0.25098,237.81,237.74,12.74374619]
[1738222589038,0.25098,237.79,237.74,12.74374619]
[1738222589733,0.25098,237.79,237.74,0.03]
[1738222590060,24.027864,237.79,237.74,0.03]
[1738222590209,43.902374,237.75,237.74,0.03]
[1738222592638,48.233864,237.75,237.74,0.03]
[1738222596447,0.12549,237.75,237.74,0.03]
[1738222597146,24.027864,237.75,237.74,0.03]
[1738222597449,28.233864,237.75,237.74,0.03]
[1738222598250,29.917694,237.75,237.74,0.03]
[1738222598659,25.586204,237.75,237.74,0.03]
[1738222598827,24.33149,237.75,237.74,0.03]
[1738222599033,49.917697,237.75,237.74,0.03]
[1738222602133,31.168677,237.75,237.74,0.03]
[1738222602958,25.153354,237.73,237.72,0.03]
[1738222603161,37.86710019,237.73,237.72,0.03]
[1738222603842,36.74161019,237.73,237.72,0.03]
[1738222604042,40.94801019,237.73,237.72,0.03]
[1738222604863,0.12549,237.73,237.72,0.03]
[1738222605362,23.902374,237.73,237.72,0.03]
[1738222605541,0.12549,237.73,237.72,0.03]
[1738222605859,1.683833,237.75,237.72,12.74374619]
[1738222606056,4.2055,237.78,237.72,12.74374619]
[1738222606256,43.902374,237.75,237.72,12.74374619]
[1738222606563,23.902374,237.75,237.72,12.74374619]
[1738222606949,0.12549,237.75,237.72,12.74374619]
[1738222607558,12.71374619,237.81,237.74,12.71374619]
[1738222608269,24.027864,237.78,237.74,12.71374619]
[1738222608452,0.12549,237.78,237.74,12.71374619]
[1738222608763,12.743746,237.79,237.76,12.71374619]
[1738222609146,23.776884,237.78,237.76,12.71374619]
[1738222609541,23.902374,237.79,237.76,12.71374619]
[1738222610270,23.902374,237.79,237.74,12.71374619]
[1738222610271,0.12549,237.78,237.74,12.71374619]
[1738222610475,23.902374,237.76,237.72,0.03]
[1738222611257,0.12549,237.75,237.72,0.03]
[1738222612650,23.902374,237.73,237.72,0.03]
[1738222613471,0.12549,237.73,237.72,0.03]
[1738222613679,1.0,237.78,237.72,0.03]
[1738222613680,12.71374619,237.81,237.72,12.74374619]
[1738222613973,4.2049,237.82,237.76,12.71374619]
[1738222614341,23.902374,237.79,237.76,12.71374619]
[1738222614545,23.902374,237.79,237.74,12.71374619]
[1738222614770,4.33089,237.79,237.74,12.71374619]
[1738222617376,0.12549,237.78,237.72,0.03]
[1738222617564,0.12549,237.75,237.72,0.03]
[1738222617955,23.902374,237.74,237.72,0.03]
[1738222619373,0.12549,237.73,237.72,0.03]
[1738222620173,36.74161019,237.73,237.72,0.03]
[1738222620574,37.74161019,237.73,237.72,0.03]
[1738222622476,23.902374,237.73,237.72,0.03]
[1738222624587,83.03,237.8,237.72,12.74374619]
[1738222624780,83.03,237.8,237.75,12.71374619]
[1738222625291,0.12549,237.79,237.75,12.71374619]
[1738222625777,0.03,237.8,237.75,12.71374619]
[1738222626078,20.03,237.8,237.75,12.71374619]
[1738222626378,23.776884,237.79,237.75,12.71374619]
[1738222626558,23.932374,237.8,237.75,12.71374619]
[1738222627785,23.932374,237.8,237.77,12.71374619]
[1738222628453,4.2053,237.79,237.72,12.74374619]
[1738222628974,0.12549,237.76,237.72,0.03]
[1738222630187,23.902374,237.74,237.72,0.03]
[1738222633480,0.12549,237.73,237.72,0.03]
[1738222634185,0.12549,237.74,237.72,0.03]
[1738222635378,28.108774,237.73,237.72,0.03]
[1738222636864,23.902374,237.73,237.72,0.03]
[1738222638166,28.108774,237.73,237.72,0.03]
[1738222639992,23.902374,237.73,237.72,0.03]
[1738222641286,28.108774,237.73,237.72,0.03]
[1738222641789,28.234264,237.73,237.72,0.03]
[1738222645894,4.206,237.75,237.72,0.03]
[1738222646194,4.206,237.75,237.72,12.74374619]
[1738222646490,23.902374,237.74,237.72,12.74374619]
[1738222647286,0.12549,237.73,237.72,0.03]
[1738222648593,0.25098,237.73,237.72,0.03]
[1738222649276,0.25098,237.74,237.72,0.03]
[1738222649475,28.108774,237.73,237.72,0.03]
[1738222654100,28.138774,237.73,237.72,0.03]
[1738222656002,28.013284,237.73,237.72,0.03]
[1738222656206,23.806884,237.73,237.72,0.03]
[1738222656381,23.806884,237.73,237.72,8.18856907]
[1738222663005,0.03,237.73,237.72,8.18856907]
[1738222676516,8.31405907,237.73,237.72,0.03]
[1738222676691,32.09094307,237.73,237.72,0.03]
[1738222677011,23.806884,237.73,237.72,0.03]
[1738222677641,23.932374,237.73,237.72,0.03]
[1738222679614,23.806884,237.73,237.72,0.03]
[1738222684325,23.806884,237.73,237.72,8.18856907]
[1738222685020,0.03,237.73,237.72,8.18856907]
[1738222693038,0.03,237.73,237.72,8.15856907]
[1738222697339,0.03,237.73,237.71,0.03]
[1738222700828,0.03,237.73,237.72,0.063]
[1738222701151,0.03,237.73,237.72,8.22156907]
[1738222704249,0.03,237.73,237.72,40.85584535]
[1738222704548,0.03,237.73,237.72,41.10682535]
[1738222704730,0.03,237.79,237.78,8.15856907]
[1738222707671,0.03,237.79,237.78,8.28405907]
[1738222712841,0.03,237.79,237.78,8.40954907]
[1738222715440,0.03,237.79,237.78,9.93614907]
[1738222716143,0.03,237.79,237.78,9.81065907]
[1738222716343,0.03,237.79,237.78,8.15856907]
[1738222717254,0.03,237.79,237.78,8.40954907]
[1738222717455,0.03,237.8,237.79,0.12549]
[1738222721057,0.03,237.8,237.78,8.15856907]
[1738222721357,0.03,237.8,237.79,0.25098]
[1738222725541,92.68596907,237.94,237.83,0.12549]
[1738222725542,1.5274,237.94,237.83,0.12549]
[1738222725743,1.5274,237.94,237.9,8.15856907]
[1738222725944,23.776884,237.93,237.9,8.15856907]
[1738222727059,1.5274,237.94,237.92,8.15856907]
[1738222728879,0.03,237.97,237.92,8.15856907]
[1738222729174,0.03,237.97,237.94,8.15856907]
[1738222730470,4.2323,237.97,237.92,8.15856907]
[1738222730668,23.776884,237.96,237.92,8.15856907]
[1738222733174,0.03,237.97,237.95,8.15856907]
[1738222741475,0.03,238.03,238.0,0.25098]
[1738222741678,0.03,238.03,238.02,8.40954907]
[1738222742562,0.03,238.04,238.03,0.12549]
[1738222743675,0.03,238.04,238.03,0.25098]
[1738222744176,0.03,238.04,238.03,0.37647]
[1738222744477,0.03,238.07,238.06,8.28405907]
[1738222745659,0.03,238.07,238.06,40.91833535]
[1738222746354,0.03,238.11,238.1,0.25098]
[1738222746559,0.03,238.11,238.1,8.40954907]
[1738222747476,0.03,238.11,238.1,8.15856907]
[1738222747693,0.15549,238.11,238.06,8.15856907]
[1738222747855,0.12549,238.08,238.03,8.15856907]
[1738222748057,23.776884,238.07,238.01,8.15856907]
[1738222749381,23.776884,238.05,238.01,8.15856907]
[1738222750386,0.12549,238.04,238.0,0.063]
[1738222750695,0.25098,238.04,238.0,0.063]
[1738222750860,0.12549,238.04,238.0,0.063]
[1738222751461,28.228464,238.06,238.0,0.063]
[1738222753582,28.102974,238.06,238.0,0.063]
[1738222753789,0.03,238.07,238.03,12.71559055]
[1738222753986,28.132874,238.07,238.03,12.71559055]
[1738222755981,0.12549,238.06,238.0,0.063]
[1738222756489,40.84846455,238.07,238.0,0.063]
[1738222756688,28.132874,238.07,238.01,12.71559055]
[1738222759376,23.806884,238.07,238.03,12.71559055]
[1738222759580,0.03,238.07,238.03,12.71559055]
[1738222760212,0.12549,238.04,238.01,12.71559055]
[1738222760368,23.902374,238.04,238.0,0.063]
[1738222761188,23.902374,238.02,238.0,0.063]
[1738222761688,36.61796455,238.01,238.0,0.063]
[1738222763574,40.81946455,238.01,238.0,0.063]
[1738222764598,42.37676455,238.01,238.0,0.063]
[1738222764970,42.50225455,238.01,238.0,0.063]
[1738222765498,24.027864,238.0,237.89,12.71559055]
[1738222765680,23.902374,237.95,237.89,12.71559055]
[1738222766786,23.776884,237.93,237.89,12.71559055]
[1738222767286,23.776884,237.93,237.87,12.71559055]
[1738222768291,23.902374,237.91,237.85,12.71559055]
[1738222768601,23.902374,237.91,237.83,12.71559055]
[1738222769195,28.105774,237.91,237.85,12.71559055]
[1738222771395,23.776884,237.91,237.87,12.71559055]
[1738222771700,23.776884,237.91,237.89,12.71559055]
[1738222773909,1.72499,237.97,237.89,12.71559055]
[1738222774087,5.92729,237.97,237.91,12.71559055]
[1738222774287,23.902374,237.95,237.91,12.71559055]
[1738222775005,6.3157,238.01,237.94,12.71559055]
[1738222775189,6.3157,238.01,237.97,12.71559055]
[1738222775512,23.902374,238.01,237.97,12.71559055]
[1738222775703,1.5025,238.02,237.97,12.71559055]
[1738222776011,1.5025,238.02,237.99,12.71559055]
[1738222776194,23.776884,238.01,237.97,12.71559055]
[1738222780311,1.5025,238.02,237.97,12.71559055]
[1738222780515,5.7038,238.02,237.97,12.71559055]
[1738222780706,84.5665,238.08,238.01,12.71559055]
[1738222781015,0.03,238.07,238.01,12.71559055]
[1738222781215,28.132974,238.07,238.01,12.71559055]
[1738222781417,0.12549,238.06,237.99,12.71559055]
[1738222781719,0.12549,238.06,237.9,2.84]
[1738222781720,23.902374,238.04,237.97,12.71559055]
[1738222782025,23.902374,238.02,237.95,12.71559055]
[1738222783217,23.902374,237.98,237.91,12.71559055]
[1738222784900,12.71559055,238.01,237.93,12.71559055]
[1738222785105,12.71559055,237.99,237.91,12.71559055]
[1738222785409,23.902374,237.98,237.89,15.55559055]
[1738222786321,23.776884,237.98,237.89,15.55559055]
[1738222788428,0.12549,237.97,237.91,12.71559055]
[1738222788601,23.776884,237.96,237.88,12.71559055]
[1738222789722,24.027864,237.97,237.9,12.71559055]
[1738222790025,28.230064,237.97,237.9,12.71559055]
[1738222790326,18.47069055,237.99,237.92,12.71559055]
[1738222790510,5.7551,237.99,237.92,12.71559055]
[1738222790914,23.776884,237.98,237.92,12.71559055]
[1738222792328,0.12549,237.95,237.87,0.063]
[1738222792500,23.776884,237.9,237.87,0.063]
[1738222793605,27.980684,237.88,237.87,0.063]
[1738222793815,28.106174,237.88,237.87,0.063]
[1738222794034,28.231664,237.88,237.87,0.063]
[1738222797348,28.357154,237.88,237.87,0.063]
[1738222799023,28.231664,237.88,237.87,0.063]
[1738222800248,28.357154,237.88,237.87,0.063]
[1738222801751,28.231664,237.88,237.87,0.063]
[1738222802522,28.357154,237.88,237.87,0.063]
[1738222803253,28.482644,237.88,237.87,0.063]
[1738222803437,29.482644,237.88,237.87,0.063]
[1738222804535,28.357154,237.88,237.87,0.063]
[1738222804730,28.231664,237.88,237.87,0.063]
[1738222805045,29.482644,237.88,237.87,0.063]
[1738222805228,23.902374,237.82,237.8,0.063]
[1738222805428,36.61796455,237.81,237.8,0.063]
[1738222806752,40.82296455,237.81,237.8,0.063]
[1738222808849,28.107374,237.81,237.8,0.063]
[1738222809063,23.776884,237.81,237.8,0.063]
[1738222809662,0.12549,237.82,237.8,0.063]
[1738222810359,23.902374,237.82,237.8,0.063]
[1738222810562,23.776884,237.82,237.8,0.063]
[1738222810939,0.12549,237.85,237.8,0.063]
[1738222814364,83.0,237.88,237.8,12.77859055]
[1738222814537,23.902374,237.87,237.8,12.77859055]
[1738222814739,23.902374,237.87,237.82,12.71559055]
[1738222814938,20.0,237.88,237.82,12.71559055]
[1738222815354,20.0,237.88,237.8,0.063]
[1738222815355,23.902374,237.87,237.8,12.77859055]
[1738222816248,23.902374,237.85,237.8,12.77859055]
[1738222816448,23.902374,237.85,237.8,0.063]
[1738222817344,1.618,237.9,237.82,12.71559055]
[1738222817543,4.2032,237.92,237.86,12.71559055]
[1738222817783,4.2027,237.95,237.88,12.71559055]
[1738222818068,23.776884,237.92,237.9,12.71559055]
[1738222818563,23.776884,237.92,237.88,12.71559055]
[1738222819475,23.776884,237.92,237.81,0.12549]
[1738222819476,87.202,237.98,237.9,12.71559055]
[1738222819673,87.202,237.98,237.93,12.71559055]
[1738222819880,23.902374,237.97,237.91,12.71559055]
[1738222820444,28.104674,237.97,237.91,12.71559055]
[1738222820644,0.12549,237.96,237.89,12.71559055]
[1738222820946,28.104674,237.97,237.89,12.71559055]
[1738222821147,4.32779,237.97,237.89,12.71559055]
[1738222821342,4.35779,237.97,237.89,12.71559055]
[1738222822790,4.35779,237.97,237.86,2.84]
[1738222822791,23.776884,237.96,237.91,12.71559055]
[1738222823148,23.932374,237.97,237.91,12.71559055]
[1738222823849,0.03,237.97,237.93,12.71559055]
[1738222824271,0.03,237.97,237.96,12.71559055]
[1738222824682,0.03,237.97,237.92,12.71559055]
[1738222824877,23.806884,237.97,237.9,12.71559055]
[1738222825082,0.12549,237.96,237.89,10.7592]
[1738222825266,0.25098,237.96,237.89,4.4584]
[1738222825476,23.776884,237.95,237.89,4.4584]
[1738222825797,23.776884,237.95,237.89,2.84]
[1738222826793,23.776884,237.93,237.86,12.71559055]
[1738222827295,0.12549,237.92,237.86,12.71559055]
[1738222827475,0.12549,237.92,237.84,19.01639055]
[1738222828597,12.84108055,237.96,237.86,12.71559055]
[1738222828795,12.84108055,237.96,237.88,12.71559055]
[1738222828970,23.902374,237.95,237.88,12.71559055]
[1738222829169,23.902374,237.95,237.86,12.71559055]
[1738222829785,23.902374,237.93,237.86,12.71559055]
[1738222830271,0.12549,237.93,237.88,12.71559055]
[1738222830472,0.12549,237.94,237.88,12.71559055]
[1738222830698,4.32839,237.94,237.88,12.71559055]
[1738222830894,0.12549,237.92,237.88,12.71559055]
[1738222832596,4.2029,237.93,237.88,12.71559055]
[1738222832806,0.12549,237.92,237.88,12.71559055]
[1738222833098,0.15549,237.92,237.88,12.71559055]
[1738222833298,0.15549,237.92,237.86,12.71559055]
[1738222833503,23.932374,237.92,237.86,12.71559055]
[1738222833713,0.15549,237.92,237.86,12.71559055]
[1738222834005,0.03,237.92,237.88,12.71559055]
[1738222835709,0.03,237.92,237.86,12.71559055]
[1738222836004,0.15549,237.92,237.86,12.71559055]
[1738222838605,0.15549,237.92,237.86,8.14496995]
[1738222838978,0.15549,237.92,237.83,2.84]
[1738222838979,0.03,237.92,237.88,8.14496995]
[1738222839182,0.03,237.92,237.9,8.14496995]
[1738222839685,0.03,237.92,237.88,8.14496995]
[1738222840079,0.03,237.92,237.86,8.14496995]
[1738222843212,0.25098,237.91,237.84,8.14496995]
[1738222844119,23.902374,237.88,237.82,8.14496995]
[1738222844909,23.902374,237.88,237.86,0.063]
[1738222845413,28.106274,237.87,237.86,0.063]
[1738222848210,28.231764,237.87,237.86,0.063]
[1738222852422,36.37673395,237.87,237.86,0.063]
[1738222852726,36.62771395,237.87,237.86,0.063]
[1738222855026,44.83568395,237.87,237.86,0.063]
[1738222855607,44.71019395,237.87,237.86,0.063]
[1738222855811,36.50222395,237.87,237.86,0.063]
[1738222856024,36.37673395,237.87,237.86,0.063]
[1738222856196,36.62771395,237.87,237.86,0.063]
[1738222856515,24.278844,237.86,237.8,0.063]
[1738222856718,0.12549,237.82,237.8,0.063]
[1738222858202,24.027864,237.81,237.8,0.063]
[1738222858524,32.42381395,237.81,237.8,0.063]
[1738222858900,0.12549,237.78,237.76,0.063]
[1738222859113,36.37853395,237.77,237.76,0.063]
[1738222864029,36.37853395,237.77,237.73,0.063]
[1738222864030,0.25098,237.74,237.73,0.063]
[1738222864237,52.42381395,237.74,237.73,0.063]
[1738222864800,32.17283395,237.74,237.73,0.063]
[1738222865304,32.04734395,237.74,237.73,0.063]
[1738222865938,23.902374,237.74,237.73,0.063]
[1738222867027,23.776884,237.74,237.73,0.063]
[1738222868425,23.776884,237.74,237.73,8.20796995]
[1738222868631,87.2053,237.8,237.73,8.20796995]
[1738222868827,24.027864,237.77,237.73,0.063]
[1738222869005,23.902374,237.75,237.73,0.063]
[1738222869504,32.17283395,237.74,237.73,0.063]
[1738222870432,24.027864,237.74,237.73,0.063]
[1738222871303,32.17283395,237.74,237.73,0.063]
[1738222871719,32.42381395,237.74,237.73,0.063]
[1738222871921,107.278844,237.73,237.72,0.063]
[1738222872114,111.485244,237.73,237.72,0.063]
[1738222874330,111.485244,237.73,237.68,0.03]
[1738222874331,0.12549,237.72,237.68,0.03]
[1738222874534,0.12549,237.67,237.62,0.063]
[1738222874709,23.776884,237.64,237.62,0.063]
[1738222875206,83.0,237.66,237.62,0.063]
[1738222875834,23.776884,237.65,237.62,0.063]
[1738222878840,87.2067,237.72,237.63,8.20796995]
[1738222879014,83.0,237.72,237.65,8.14496995]
[1738222879713,23.776884,237.71,237.65,8.14496995]
[1738222879915,83.0,237.72,237.65,8.14496995]
[1738222880840,23.776884,237.71,237.65,8.14496995]
[1738222881836,83.03,237.72,237.67,8.14496995]
[1738222882216,0.03,237.72,237.67,8.14496995]
[1738222882421,23.806884,237.72,237.65,8.14496995]
[1738222882622,28.013484,237.72,237.65,8.14496995]
[1738222883327,0.03,237.72,237.69,8.14496995]
[1738222883918,23.806884,237.72,237.67,8.14496995]
[1738222884112,23.806884,237.72,237.65,8.14496995]
[1738222884740,8.14496995,237.7,237.64,20.0]
[1738222884928,23.776884,237.67,237.63,0.063]
[1738222885437,27.984384,237.67,237.63,0.063]
[1738222886739,40.74092799,237.67,237.63,0.063]
[1738222886928,16.96374399,237.69,237.63,0.063]
[1738222887324,12.75654399,237.69,237.63,0.063]
[1738222888325,36.53342799,237.69,237.63,0.063]
[1738222888532,23.776884,237.68,237.63,0.063]
[1738222889037,27.984284,237.68,237.63,0.063]
[1738222889242,12.75654399,237.67,237.63,0.063]
[1738222889448,23.776884,237.64,237.63,0.063]
[1738222889836,24.027864,237.64,237.63,0.063]
[1738222890939,24.278844,237.64,237.63,0.063]
[1738222891130,28.486844,237.64,237.63,0.063]
[1738222891340,30.092244,237.64,237.63,0.063]
[1738222892517,0.50196,237.63,237.62,0.063]
[1738222892851,13.25850399,237.63,237.62,0.063]
[1738222893145,37.03538799,237.63,237.62,0.063]
[1738222893643,36.78440799,237.63,237.62,0.063]
[1738222894141,119.78440799,237.63,237.62,0.063]
[1738222895725,121.46925799,237.63,237.62,0.063]
[1738222897457,119.78440799,237.63,237.62,0.063]
[1738222898839,106.776884,237.63,237.62,0.063]
[1738222900445,119.90989799,237.63,237.62,0.063]
[1738222900644,0.37647,237.61,237.6,0.063]
[1738222900846,36.90989799,237.61,237.6,0.063]
[1738222901458,24.278844,237.6,237.56,0.063]
[1738222901759,36.90989799,237.57,237.56,0.063]
[1738222902730,41.11909799,237.57,237.56,0.063]
[1738222906233,41.24458799,237.57,237.56,0.063]
[1738222906754,42.92994999,237.57,237.56,0.063]
[1738222907752,0.50196,237.52,237.49,0.063]
[1738222907933,12.88203399,237.5,237.49,0.063]
[1738222908453,12.75654399,237.5,237.49,0.063]
[1738222910031,40.74392799,237.5,237.49,0.063]
[1738222910552,41.24588799,237.5,237.49,0.063]
[1738222910954,24.278844,237.49,237.39,0.063]
[1738222911137,23.776884,237.42,237.39,0.063]
[1738222912646,36.78440799,237.41,237.39,0.063]
[1738222913252,36.53342799,237.41,237.39,0.063]
[1738222914550,37.03538799,237.41,237.39,0.063]
[1738222915950,4.2122,237.4,237.39,0.063]
[1738222916344,28.491044,237.4,237.39,0.063]
[1738222916858,23.776884,237.4,237.39,0.063]
[1738222917646,24.027864,237.4,237.39,0.063]
[1738222917845,23.776884,237.4,237.39,0.063]
[1738222919859,12.75654399,237.43,237.39,0.063]
[1738222920063,0.50196,237.44,237.39,0.063]
[1738222920243,23.776884,237.41,237.39,0.063]
[1738222921060,12.75654399,237.44,237.39,0.063]
[1738222923966,12.75654399,237.42,237.39,0.063]
[1738222924152,36.53342799,237.4,237.39,0.063]
[1738222925462,23.776884,237.4,237.39,0.063]
[1738222925855,4.2113,237.46,237.39,0.063]
[1738222925856,12.75654399,237.46,237.39,0.063]
[1738222926370,23.776884,237.45,237.39,0.063]
[1738222926565,23.776884,237.45,237.39,1.6239]
[1738222926761,12.75654399,237.48,237.39,14.38044399]
[1738222927054,23.776884,237.43,237.39,1.6239]
[1738222927258,23.776884,237.43,237.39,0.063]
[1738222933875,0.25098,237.42,237.39,0.063]
[1738222934069,8.43032026,237.4,237.39,0.063]
[1738222934255,32.20720426,237.4,237.39,0.063]
[1738222936171,36.41940426,237.4,237.39,0.063]
[1738222936777,41.02669201,237.4,237.39,0.063]
[1738222941855,40.77571201,237.4,237.39,0.063]
[1738222942060,23.776884,237.4,237.39,0.063]
[1738222942260,41.02669201,237.4,237.39,0.063]
[1738222943083,41.05669201,237.4,237.39,0.063]
[1738222943375,40.80571201,237.4,237.39,0.063]
[1738222943678,28.019084,237.4,237.39,0.063]
[1738222943887,0.03,237.4,237.39,0.063]
[1738222945278,36.59351201,237.4,237.39,0.063]
[1738222945877,36.84449201,237.4,237.39,0.063]
[1738222946785,49.63112001,237.4,237.39,0.063]
[1738222947166,53.84332001,237.4,237.39,0.063]
[1738222947985,40.80571201,237.4,237.39,0.063]
[1738222948862,17.02882801,237.4,237.39,0.063]
[1738222949061,4.2422,237.4,237.39,0.063]
[1738222949262,0.03,237.4,237.39,0.063]
[1738222953063,23.776884,237.43,237.39,0.063]
[1738222954464,25.63625601,237.48,237.4,12.78662801]
[1738222954790,0.03,237.44,237.4,12.78662801]
[1738222956194,0.03,237.44,237.39,0.063]
[1738222956889,12.48329695,237.45,237.39,0.063]
[1738222958690,23.776884,237.45,237.39,0.063]
[1738222959691,27.988284,237.45,237.39,0.063]
[1738222960182,8.17791638,237.44,237.39,0.063]
[1738222961610,12.38951638,237.44,237.39,0.063]
[1738222963711,4.2116,237.44,237.39,0.063]
[1738222965705,8.17791638,237.46,237.39,0.063]
[1738222965890,12.38841638,237.5,237.4,8.17791638]
[1738222966204,23.776884,237.49,237.42,8.17791638]
[1738222967193,0.03,237.44,237.42,8.17791638]
[1738222970322,0.03,237.44,237.4,8.17791638]
[1738222970526,0.03,237.44,237.39,0.063]
[1738222970725,23.776884,237.43,237.39,0.063]
[1738222972724,23.776884,237.41,237.39,0.063]
[1738222973624,31.95480038,237.4,237.39,0.063]
[1738222974821,36.41798038,237.4,237.39,0.063]
[1738222975018,31.95480038,237.4,237.39,0.063]
[1738222975221,23.776884,237.4,237.39,0.063]
[1738222975701,31.95480038,237.4,237.39,0.063]
[1738222975901,23.776884,237.4,237.39,0.063]
[1738222976419,31.95480038,237.4,237.39,0.063]
[1738222977231,23.776884,237.4,237.39,0.063]
[1738222979032,1.92908,237.44,237.39,8.24091638]
[1738222979033,0.03,237.44,237.39,8.24091638]
[1738222979213,0.03,237.44,237.41,8.17791638]
[1738222980210,0.03,237.44,237.4,20.0]
[1738222980397,0.03,237.44,237.39,8.24091638]
[1738222980601,23.806884,237.44,237.39,0.063]
[1738222980803,8.17791638,237.43,237.39,0.063]